Workbook

Sheet 참여업체현황
B1: 참여업체 현황
F2: 공고일 | G2: 2014-05-21
B3: 업 체 명 | C3: 주 소 | D3: 대표자 | E3: 지분율 (%) | F3: 면허사항
F4: 종합감리 전문회사 | G4: 토목감리 전문회사
B5: A사 | C5: 00시00동00번지 | D5: 홍길동 | E5: 0.6 | F5: o
B6: B사 | C6: 00시00동00번지 | D6: 홍삼둥 | E6: 0.3 | F6: o
B7: C사 | C7: 00시00동00번지 | D7: 홍사덩 | E7: 0.1 | F7: o
B9: ※ 작성유의사항
B10: 1. 빨강색으로 표시된 곳만 수정 입력하고 추가사항 있을시 "셀 복사 → 복사한 셀 삽입"을 통하여 기재하며, 계산식이 연동되었는지 확인한다.
B11: 2. 공고일에 맞도록 날짜 수정 기입한다
B12: 3. 3개 업체 컨소시엄 기준으로 작성한 산정표 이므로 만약 2개 업체 컨소시엄으로 참여시 필요없는 셀은 삭제한다(수식 오류 수정 필요)

Sheet 참여감리원 명단
B1: 참여감리원 명단(등급)
B3: 구분 | C3: 분야 (등급) | D3: 성명 | E3: 기술 자격명 | F3: 주민번호 | G3: 나이 | H3: 학력 | J3: 소속 | K3: 비고
G4: (만 00세) | H4: 최종학력 (학위) | I4: 졸업/ 취득일
B5: 책임 감리원 | C5: 토목분야 (수석감리사) | D5: 홍길일 | E5: 토목시공기술사 | F5: 000-000 | G5: 0 | H5: 석사 | I5: 00-00-00 | J5: 00엔지니어링
B6: 보조 감리원 | C6: 토목분야 (감리사) | D6: 홍길이 | E6: 토목시공기술사 | F6: 00-00 | G6: 0 | H6: 학사 | I6: 00-00-00 | J6: 00기술단
B7: 기술 지원 감리원 | C7: 토목분야 (수석감리사) | D7: 홍길삼 | E7: 도로및공항기술사 | F7: 00-00 | G7: 0 | H7: 학사 | I7: 00-00-00 | J7: 00기술단 | K7: 도로및공항
C8: 토목분야 (수석감리사) | D8: 홍길사 | E8: 토질및기초기술사 | F8: 00-00 | G8: 0 | H8: 학사 | I8: 00-00-00 | J8: 00엔지니어링 | K8: 토질및기초
C9: 토목분야 (수석감리사) | D9: 홍길오 | E9: 토목구조기술사 | F9: 00-00 | G9: 0 | H9: 학사 | I9: 00-00-00 | J9: 00감리단 | K9: 토목구조
C10: 토목분야 (수석감리사) | D10: 홍길육 | E10: 상하수도기술사 | F10: 00-00 | G10: 0 | H10: 학사 | I10: 00-00-00 | J10: 00엔지니어링 | K10: 상하수도
C11: 토목분야 (수석감리사) | D11: 홍길칠 | E11: 철도기술사 | F11: 00-00 | G11: 0 | H11: 학사 | I11: 00-00-00 | J11: 00엔지니어링 | K11: 철도

Sheet 자기평가서
B1: 자기 평가서
B3: 항목 | C3: 세부항목 | D3: 평가내용 | F3: 배점 | G3: 평점 | H3: 비고
B4: 가.참여 감리원 [50] | C4: (1)책임 감리원 [25] | D4: (가)등급 | E4: 300억,1년,수석감리사 | F4: 적.부 | G4: 적
D5: (나)해당분야경력 | E5: 해당분야100%, 그외60% | F5: 9 | G5: ='가.개인별 경력 및 실적목록'!F5 -> 9
D6: (다)직무분야실적 | E6: 설계 | F6: 3 | G6: ='가.개인별 경력 및 실적목록'!H5 -> 3
E7: 시공 등 | F7: 6 | G7: ='가.개인별 경력 및 실적목록'!J5 -> 6
D8: (라)교육훈련 | E8: 교육훈련 | F8: 0.5 | G8: ='가.교육 및 감리자격 현황'!I5 -> 0.5
E9: 기술자격 | F9: 0.5 | G9: ='가.교육 및 감리자격 현황'!I23 -> 0.5
D10: (마)면접(발표) | E10: 0점 표기 | F10: 6 | G10: 0
D11: 소계 | F11: =SUM(F4:F10) -> 25 | G11: =G5+G6+G7+G8+G9+G10 -> 19
C12: (2)보조 감리원 [25] | D12: (가)등급 | E12: 감리사 이상 | F12: 적.부
D13: (나)해당분야경력 | E13: 해당분야100%, 그외60% | F13: 9 | G13: ='가.개인별 경력 및 실적목록'!F6 -> 6.3
D14: (다)직무분야실적 | E14: 설계 | F14: 2 | G14: ='가.개인별 경력 및 실적목록'!H6 -> 2
E15: 시공 등 | F15: 3 | G15: ='가.개인별 경력 및 실적목록'!J6 -> 3.0
D16: (라)교육훈련 | E16: 교육훈련 | F16: 1 | G16: ='가.교육 및 감리자격 현황'!I7 -> 1
D17: 소계 | F17: =SUM(F12:F16) -> 15 | G17: =G13+G14+G15+G16 -> 12.3
C18: (3)기술 지원 감리원 [25] | D18: (가)등급 | E18: 수석감리사 : 3 감리사 이하 : 2 | F18: 3 | G18: ='가.교육 및 감리자격 현황'!I25 -> 3
D19: (나)해당분야경력 | E19: 해당분야100%, 그외60% | F19: 6 | G19: =('가.개인별 경력 및 실적목록'!F7+'가.개인별 경력 및 실적목록'!F8+'가.개인별 경력 및 실적목록'!F9+'가.개인별 경력 및 실적목록'!F10)/4 -> 4.05
D20: (라)교육훈련 | E20: 교육훈련 | F20: 0.5 | G20: ='가.교육 및 감리자격 현황'!I19 -> 0.5
E21: 기술자격(기술사) | F21: 0.5 | G21: ='가.교육 및 감리자격 현황'!I24 -> 0.5
D22: 소계 | F22: =SUM(F18:F21) -> 10 | G22: =G18+G19+G20+G21 -> 8.05
C23: 소계 | F23: =F11+F17+F22 -> 50 | G23: =G11+G17+G22 -> 39.35
B24: 나. 유사 용역 수행실적 [10] | C24: (1)감리 전문 회사 실적 | D24: 업체별 수행실적금액 합산하여 평가 (최근 3년간) | F24: 10 | G24: ='나.유사용역사업 수행실적'!J8 -> 6
B25: 다. 신용도 [15] | C25: (1)입찰 참가 제한 업무정지 | D25: 감리전문회사(0.2점 감점/월) 참여감리원(0.2점 감점/월) | F25: 7 | G25: =F25-다.신용도!G7 -> 6.4
C26: (2)부실 벌점 | D26: 감리전문회사 참여감리원 | F26: 5 | G26: =F26-다.신용도!G13 -> 2
C27: (3)재정 상태 건실도 | D27: 신용평가등급 | F27: 3 | G27: =다.신용도!G17 -> 2.85
C28: 소계 | F28: =SUM(F25:F27) -> 15 | G28: =G25+G26+G27 -> 11.25
B29: 라. 기술 개발 및 투자 실적 [10] | C29: (1)개발 실적 | D29: 건설신기술, 특허, (개발,활용실적) | F29: 3 | G29: ='라.기술개발 및 투자실적'!I7 -> 3.25
C30: (2)투자 실적 | D30: 3년간 기술개발투자실적/건설부문총매출액 | F30: 7 | G30: ='라.기술개발 및 투자실적'!O80 -> 6.4
C31: 소계 | F31: =SUM(F29:F30) -> 10 | G31: =G29+G30 -> 9.65
B32: 마. 업무 중첩도 [5] | C32: (1)상주 감리원 | D32: 책임감리원1, 보조감리원1 | F32: 3 | G32: =마.업무중첩도!F8 -> 3
C33: (2)기술 지원 감리원 | D33: 10개이상 중복배치시 0점 | F33: 2 | G33: =마.업무중첩도!F29 -> 2
C34: 소계 | F34: =SUM(F32:F33) -> 5 | G34: =G32+G33 -> 5
B35: 바. 교체 빈도 | C35: (1)감리 전문 회사 | D35: 1년간 현장배치된 감리원수 교체빈도율 | F35: 5 | G35: =바.교체빈도!J11 -> 5
C36: (2)참여 감리원 | D36: 0.25점/회 감점 | F36: 5 | G36: =바.교체빈도!H24 -> 4.35
C37: 소계 | F37: =SUM(F35:F36) -> 10 | G37: =G35+G36 -> 9.35
B38: 계 | F38: =F23+F24+F28+F31+F34+F37 -> 100 | G38: =G23+G24+G28+G31+G34+G37 -> 80.6
B40: 가감점 평가기준 | C40: 가점 | D40: 공사비 절감기여 감리원
C41: 감점 | D41: 부패행위 관련자
C42: 계

Sheet 가.개인별 경력 및 실적목록
B1: 참여감리원 개인별 경력 및 실적목록
B3: 구분 | C3: 분야 (등급) | D3: 성명 | E3: 해당분야 경력(년) | G3: 직무분야실적(년)
E4: 보조감리원은(월) | F4: 점수 | G4: 설계 등(년) | H4: 점수 | I4: 시공 등(년) | J4: 점수
B5: ='참여감리원 명단'!B5 -> 책임 감리원 | D5: ='참여감리원 명단'!D5 -> 홍길일 | E5: ='가.해당분야 경력'!E17/365 -> 22.37589041 | F5: =IF(E5>=15,"9",IF(E5>=13,"8.1", IF(E5>=11,"7.2", IF(E5>=9,"6.3", IF(E5<9,"5.4"))))) -> 9 | G5: =('가.직무분야 실적'!D7+'가.직무분야 실적'!D19)/365 -> 66.04931507 | H5: =IF(G5>=15,"3",IF(G5>=13,"2.7", IF(G5>=11,"2.4", IF(G5>=9,"2.1", IF(G5<9,"1.8"))))) -> 3 | I5: =('가.직무분야 실적'!D19)/365 -> 33.02465753 | J5: =IF(I5>=7,"6",IF(I5>=5,"5.4", IF(I5>=3,"4.8", IF(I5>=2,"4.2", IF(I5<2,"6.3"))))) -> 6
B6: ='참여감리원 명단'!B6 -> 보조 감리원 | D6: ='참여감리원 명단'!D6 -> 홍길이 | E6: ='가.해당분야 경력'!E36/30.5 -> 32.05901639 | F6: =IF(E6>=48,"9",IF(E6>=42,"8.1", IF(E6>=36,"7.2", IF(E6>=30,"6.3", IF(E6<30,"5.4"))))) -> 6.3 | G6: =('가.직무분야 실적'!D37+'가.직무분야 실적'!D49)/365 -> 66.04931507 | H6: =IF(G6>=10,"2",IF(G6>=8,"1.8", IF(G6>=6,"1.6", IF(G6>=4,"1.4", IF(G6<4,"1.2"))))) -> 2 | I6: =('가.직무분야 실적'!D49)/365 -> 33.02465753 | J6: =IF(I6>=4,"3.0",IF(I6>=3,"2.7", IF(I6>=2,"2.4",IF(I6<2,"2.1")))) -> 3.0
B7: ='참여감리원 명단'!B7:B11 -> 기술 지원 감리원 | C7: 도로및 공항 | D7: ='참여감리원 명단'!D7 -> 홍길삼 | E7: ='가.해당분야 경력'!E57/365 -> 12.48328767 | F7: =IF(E7>=15,"6",IF(E7>=13,"5.4", IF(E7>=11,"4.8", IF(E7>=9,"4.2", IF(E7<9,"3.6"))))) -> 4.8 | G7: - | H7: - | I7: - | J7: -
C8: 토질 및 기초 | D8: ='참여감리원 명단'!D8 -> 홍길사 | E8: ='가.해당분야 경력'!E78/365 -> 10.01808219 | F8: =IF(E8>=15,"6",IF(E8>=13,"5.4", IF(E8>=11,"4.8", IF(E8>=9,"4.2", IF(E8<9,"3.6"))))) -> 4.2 | G8: - | H8: - | I8: - | J8: -
C9: 토목구조 | D9: ='참여감리원 명단'!D9 -> 홍길오 | E9: ='가.해당분야 경력'!E99/365 -> 5.324931507 | F9: =IF(E9>=15,"6",IF(E9>=13,"5.4", IF(E9>=11,"4.8", IF(E9>=9,"4.2", IF(E9<9,"3.6"))))) -> 3.6 | G9: - | H9: - | I9: - | J9: -
C10: 상하수도 | D10: ='참여감리원 명단'!D10 -> 홍길육 | E10: ='가.해당분야 경력'!E120/365 -> 4.801643836 | F10: =IF(E10>=15,"6",IF(E10>=13,"5.4", IF(E10>=11,"4.8", IF(E10>=9,"4.2", IF(E10<9,"3.6"))))) -> 3.6 | G10: - | H10: - | I10: - | J10: -
C11: 철도 | D11: ='참여감리원 명단'!D11 -> 홍길칠 | E11: ='가.해당분야 경력'!E141/365 -> 4.801643836 | F11: =IF(E11>=15,"6",IF(E11>=13,"5.4", IF(E11>=11,"4.8", IF(E11>=9,"4.2", IF(E11<9,"3.6"))))) -> 3.6 | G11: - | H11: - | I11: - | J11: -
C12: 계 | F12: =ROUND((F7+F8+F9+F10)/4,2) -> 4.05

Sheet 가.해당분야 경력
B1: 책임감리원 등급판정
B3: ○ | C3: 책임감리원 | E3: ='참여감리원 명단'!D5 -> 홍길일
B4: 경력사항
B5: 사업명 | D5: 공사개요(면적, 금액) | G5: 근무형태 및 직책 | H5: 참여당시 | K5: 발주처
D6: 면적,금액등 | E6: (참여기간) | F6: (일수) | H6: 소속회사 | I6: 등급 | J6: 직위
B7: 00부지조성공사 | D7: 면적 400,000 | E7: 94.10.10~09.10.09 | F7: 5479 | G7: 상주/보조 | H7: 00엔지니어링 | I7: 수석감리사 | J7: 과장 | K7: 00시
B11: 참여감리원 개인별 해당분야 경력
B13: ○ | C13: 책임감리원 | E13: ='참여감리원 명단'!D5 -> 홍길일
B14: 경력사항
B15: 사업명 | D15: 공사개요(면적, 금액) | G15: 근무형태 및 직책 | H15: 참여당시 | K15: 발주처
D16: 면적,금액등 | E16: (참여기간) | F16: (일수) | H16: 소속회사 | I16: 등급 | J16: 직위
B17: 합계 | C17: 총00건 | E17: =E18+(E22*0.6) -> 8167.2
B18: 100%계 | E18: =SUM(F19:F21) -> 6597
B19: 00부지조성공사 | D19: 면적 : 20,000,000㎡ | E19: 94.10.10~09.10.09 | F19: 1540 | G19: 상주/보조 | H19: 00엔지니어링 | I19: 감리사보 | J19: 과장 | K19: 00시
B20: 00부지조성공사 | D20: 면적 : 1,000,000㎡ | E20: 09.10.10~12.10.09 | F20: 2642 | G20: 상주/보조 | H20: 00엔지니어링 | I20: 감리사보 | J20: 과장 | K20: 00시
B21: 00부지조성공사 | D21: 면적 : 1,000,000㎡ | E21: 09.10.10~12.10.09 | F21: 2415 | G21: 상주/보조 | H21: 00엔지니어링 | I21: 감리사보 | J21: 과장 | K21: 00시
B22: 60%계 | E22: =SUM(F23:F25) -> 2617
B23: 00도로확장공사 | D23: 2-4차로확장, 1.4km | E23: 09.10.10~12.10.09 | F23: 1530 | G23: 상주/보조 | H23: 00엔지니어링 | I23: 감리사보 | J23: 과장 | K23: 00시
B24: 00관거정비공사 | D24: D100, 5.6km | E24: 12.10.10~13.01.03 | F24: 87 | G24: 상주/책임 | H24: 00엔지니어링 | I24: 감리사보 | J24: 과장 | K24: 00시
B25: 00도로확장공사 | D25: 2-4차로확장, 1.4km | E25: 09.10.10~12.10.09 | F25: 1000 | G25: 상주/보조 | H25: 00엔지니어링 | I25: 감리사보 | J25: 과장 | K25: 00시
B32: ○ | C32: ='참여감리원 명단'!B6 -> 보조 감리원 | E32: ='참여감리원 명단'!D6 -> 홍길이
B33: 경력사항
B34: 사업명 | D34: 공사개요(면적, 금액) | G34: 근무형태 및 직책 | H34: 참여당시 | K34: 발주처
E35: (참여기간) | F35: (일수) | H35: 소속회사 | I35: 등급 | J35: 직위
B36: 합계 | C36: 총00건 | E36: =E37+(E41*0.6) -> 977.8
B37: 100%계 | E37: =SUM(F38:F40) -> 598
B38: 00부지조성공사 | D38: 면적 : 20,000,000㎡ | E38: 94.10.10~09.10.09 | F38: 124 | G38: 상주/보조 | H38: 00엔지니어링 | I38: 감리사보 | J38: 과장 | K38: 00시
B39: 00부지조성공사 | D39: 면적 : 1,000,000㎡ | E39: 09.10.10~12.10.09 | F39: 221 | G39: 상주/보조 | H39: 00엔지니어링 | I39: 감리사보 | J39: 과장 | K39: 00시
B40: 00부지조성공사 | D40: 면적 : 1,000,000㎡ | E40: 09.10.10~12.10.09 | F40: 253 | G40: 상주/보조 | H40: 00엔지니어링 | I40: 감리사보 | J40: 과장 | K40: 00시
B41: 60%계 | E41: =SUM(F42:F44) -> 633
B42: 00도로확장공사 | D42: 2-4차로확장, 1.4km | E42: 09.10.10~12.10.09 | F42: 245 | G42: 상주/보조 | H42: 00엔지니어링 | I42: 감리사보 | J42: 과장 | K42: 00시
B43: 00관거정비공사 | D43: D100, 5.6km | E43: 12.10.10~13.01.03 | F43: 134 | G43: 상주/책임 | H43: 00엔지니어링 | I43: 감리사보 | J43: 과장 | K43: 00시
B44: 00도로확장공사 | D44: 2-4차로확장, 1.4km | E44: 09.10.10~12.10.09 | F44: 254 | G44: 상주/보조 | H44: 00엔지니어링 | I44: 감리사보 | J44: 과장 | K44: 00시
B53: ○ | C53: ='참여감리원 명단'!B7 -> 기술 지원 감리원 | E53: ='참여감리원 명단'!D7 -> 홍길삼 | F53: ='가.개인별 경력 및 실적목록'!C7 -> 도로및 공항
B54: 경력사항
B55: 사업명 | D55: 공사개요(면적, 금액) | G55: 근무형태 및 직책 | H55: 참여당시 | K55: 발주처
E56: (참여기간) | F56: (일수) | H56: 소속회사 | I56: 등급 | J56: 직위
B57: 합계 | C57: 총00건 | E57: =E58+(E62*0.6) -> 4556.4
B58: 100%계 | E58: =SUM(F59:F61) -> 3081
B59: 00부지조성공사 | D59: 면적 : 20,000,000㎡ | E59: 94.10.10~09.10.09 | F59: 2543 | G59: 상주/보조 | H59: 00엔지니어링 | I59: 감리사보 | J59: 과장 | K59: 00시
B60: 00부지조성공사 | D60: 면적 : 1,000,000㎡ | E60: 09.10.10~12.10.09 | F60: 212 | G60: 상주/보조 | H60: 00엔지니어링 | I60: 감리사보 | J60: 과장 | K60: 00시
B61: 00부지조성공사 | D61: 면적 : 1,000,000㎡ | E61: 09.10.10~12.10.09 | F61: 326 | G61: 상주/보조 | H61: 00엔지니어링 | I61: 감리사보 | J61: 과장 | K61: 00시
B62: 60%계 | E62: =SUM(F63:F65) -> 2459
B63: 00도로확장공사 | D63: 2-4차로확장, 1.4km | E63: 09.10.10~12.10.09 | F63: 2143 | G63: 상주/보조 | H63: 00엔지니어링 | I63: 감리사보 | J63: 과장 | K63: 00시
B64: 00관거정비공사 | D64: D100, 5.6km | E64: 12.10.10~13.01.03 | F64: 81 | G64: 상주/책임 | H64: 00엔지니어링 | I64: 감리사보 | J64: 과장 | K64: 00시
B65: 00도로확장공사 | D65: 2-4차로확장, 1.4km | E65: 09.10.10~12.10.09 | F65: 235 | G65: 상주/보조 | H65: 00엔지니어링 | I65: 감리사보 | J65: 과장 | K65: 00시
B74: ○ | C74: ='참여감리원 명단'!B7 -> 기술 지원 감리원 | E74: ='참여감리원 명단'!D8 -> 홍길사 | F74: ='가.개인별 경력 및 실적목록'!C8 -> 토질 및 기초
B75: 경력사항
B76: 사업명 | D76: 공사개요(면적, 금액) | G76: 근무형태 및 직책 | H76: 참여당시 | K76: 발주처
E77: (참여기간) | F77: (일수) | H77: 소속회사 | I77: 등급 | J77: 직위
B78: 합계 | C78: 총00건 | E78: =E79+(E83*0.6) -> 3656.6
B79: 100%계 | E79: =SUM(F80:F82) -> 2855
B80: 00부지조성공사 | D80: 면적 : 20,000,000㎡ | E80: 94.10.10~09.10.09 | F80: 258 | G80: 상주/보조 | H80: 00엔지니어링 | I80: 감리사보 | J80: 과장 | K80: 00시
B81: 00부지조성공사 | D81: 면적 : 1,000,000㎡ | E81: 09.10.10~12.10.09 | F81: 2356 | G81: 상주/보조 | H81: 00엔지니어링 | I81: 감리사보 | J81: 과장 | K81: 00시
B82: 00부지조성공사 | D82: 면적 : 1,000,000㎡ | E82: 09.10.10~12.10.09 | F82: 241 | G82: 상주/보조 | H82: 00엔지니어링 | I82: 감리사보 | J82: 과장 | K82: 00시
B83: 60%계 | E83: =SUM(F84:F86) -> 1336
B84: 00도로확장공사 | D84: 2-4차로확장, 1.4km | E84: 09.10.10~12.10.09 | F84: 546 | G84: 상주/보조 | H84: 00엔지니어링 | I84: 감리사보 | J84: 과장 | K84: 00시
B85: 00관거정비공사 | D85: D100, 5.6km | E85: 12.10.10~13.01.03 | F85: 254 | G85: 상주/책임 | H85: 00엔지니어링 | I85: 감리사보 | J85: 과장 | K85: 00시
B86: 00도로확장공사 | D86: 2-4차로확장, 1.4km | E86: 09.10.10~12.10.09 | F86: 536 | G86: 상주/보조 | H86: 00엔지니어링 | I86: 감리사보 | J86: 과장 | K86: 00시
B95: ○ | C95: ='참여감리원 명단'!B7 -> 기술 지원 감리원 | E95: ='참여감리원 명단'!D9 -> 홍길오 | F95: ='가.개인별 경력 및 실적목록'!C9 -> 토목구조
B96: 경력사항
B97: 사업명 | D97: 공사개요(면적, 금액) | G97: 근무형태 및 직책 | H97: 참여당시 | K97: 발주처
E98: (참여기간) | F98: (일수) | H98: 소속회사 | I98: 등급 | J98: 직위
B99: 합계 | C99: 총00건 | E99: =E100+(E104*0.6) -> 1943.6
B100: 100%계 | E100: =SUM(F101:F103) -> 1409
B101: 00부지조성공사 | D101: 면적 : 20,000,000㎡ | E101: 94.10.10~09.10.09 | F101: 513 | G101: 상주/보조 | H101: 00엔지니어링 | I101: 감리사보 | J101: 과장 | K101: 00시
B102: 00부지조성공사 | D102: 면적 : 1,000,000㎡ | E102: 09.10.10~12.10.09 | F102: 358 | G102: 상주/보조 | H102: 00엔지니어링 | I102: 감리사보 | J102: 과장 | K102: 00시
B103: 00부지조성공사 | D103: 면적 : 1,000,000㎡ | E103: 09.10.10~12.10.09 | F103: 538 | G103: 상주/보조 | H103: 00엔지니어링 | I103: 감리사보 | J103: 과장 | K103: 00시
B104: 60%계 | E104: =SUM(F105:F107) -> 891
B105: 00도로확장공사 | D105: 2-4차로확장, 1.4km | E105: 09.10.10~12.10.09 | F105: 234 | G105: 상주/보조 | H105: 00엔지니어링 | I105: 감리사보 | J105: 과장 | K105: 00시
B106: 00관거정비공사 | D106: D100, 5.6km | E106: 12.10.10~13.01.03 | F106: 125 | G106: 상주/책임 | H106: 00엔지니어링 | I106: 감리사보 | J106: 과장 | K106: 00시
B107: 00도로확장공사 | D107: 2-4차로확장, 1.4km | E107: 09.10.10~12.10.09 | F107: 532 | G107: 상주/보조 | H107: 00엔지니어링 | I107: 감리사보 | J107: 과장 | K107: 00시
B116: ○ | C116: ='참여감리원 명단'!B7 -> 기술 지원 감리원 | E116: ='참여감리원 명단'!D10 -> 홍길육 | F116: ='가.개인별 경력 및 실적목록'!C10 -> 상하수도
B117: 경력사항
B118: 사업명 | D118: 공사개요(면적, 금액) | G118: 근무형태 및 직책 | H118: 참여당시 | K118: 발주처
E119: (참여기간) | F119: (일수) | H119: 소속회사 | I119: 등급 | J119: 직위
B120: 합계 | C120: 총00건 | E120: =E121+(E125*0.6) -> 1752.6
B121: 100%계 | E121: =SUM(F122:F124) -> 1053
B122: 00부지조성공사 | D122: 면적 : 20,000,000㎡ | E122: 94.10.10~09.10.09 | F122: 251 | G122: 상주/보조 | H122: 00엔지니어링 | I122: 감리사보 | J122: 과장 | K122: 00시
B123: 00부지조성공사 | D123: 면적 : 1,000,000㎡ | E123: 09.10.10~12.10.09 | F123: 534 | G123: 상주/보조 | H123: 00엔지니어링 | I123: 감리사보 | J123: 과장 | K123: 00시
B124: 00부지조성공사 | D124: 면적 : 1,000,000㎡ | E124: 09.10.10~12.10.09 | F124: 268 | G124: 상주/보조 | H124: 00엔지니어링 | I124: 감리사보 | J124: 과장 | K124: 00시
B125: 60%계 | E125: =SUM(F126:F128) -> 1166
B126: 00도로확장공사 | D126: 2-4차로확장, 1.4km | E126: 09.10.10~12.10.09 | F126: 248 | G126: 상주/보조 | H126: 00엔지니어링 | I126: 감리사보 | J126: 과장 | K126: 00시
B127: 00관거정비공사 | D127: D100, 5.6km | E127: 12.10.10~13.01.03 | F127: 653 | G127: 상주/책임 | H127: 00엔지니어링 | I127: 감리사보 | J127: 과장 | K127: 00시
B128: 00도로확장공사 | D128: 2-4차로확장, 1.4km | E128: 09.10.10~12.10.09 | F128: 265 | G128: 상주/보조 | H128: 00엔지니어링 | I128: 감리사보 | J128: 과장 | K128: 00시
B137: ○ | C137: ='참여감리원 명단'!B7 -> 기술 지원 감리원 | E137: ='참여감리원 명단'!D11 -> 홍길칠 | F137: ='가.개인별 경력 및 실적목록'!C11 -> 철도
B138: 경력사항
B139: 사업명 | D139: 공사개요(면적, 금액) | G139: 근무형태 및 직책 | H139: 참여당시 | K139: 발주처
E140: (참여기간) | F140: (일수) | H140: 소속회사 | I140: 등급 | J140: 직위
B141: 합계 | C141: 총00건 | E141: =E142+(E146*0.6) -> 1752.6
B142: 100%계 | E142: =SUM(F143:F145) -> 1053
B143: 00부지조성공사 | D143: 면적 : 20,000,000㎡ | E143: 94.10.10~09.10.09 | F143: 251 | G143: 상주/보조 | H143: 00엔지니어링 | I143: 감리사보 | J143: 과장 | K143: 00시
B144: 00부지조성공사 | D144: 면적 : 1,000,000㎡ | E144: 09.10.10~12.10.09 | F144: 534 | G144: 상주/보조 | H144: 00엔지니어링 | I144: 감리사보 | J144: 과장 | K144: 00시
B145: 00부지조성공사 | D145: 면적 : 1,000,000㎡ | E145: 09.10.10~12.10.09 | F145: 268 | G145: 상주/보조 | H145: 00엔지니어링 | I145: 감리사보 | J145: 과장 | K145: 00시
B146: 60%계 | E146: =SUM(F147:F149) -> 1166
B147: 00도로확장공사 | D147: 2-4차로확장, 1.4km | E147: 09.10.10~12.10.09 | F147: 248 | G147: 상주/보조 | H147: 00엔지니어링 | I147: 감리사보 | J147: 과장 | K147: 00시
B148: 00관거정비공사 | D148: D100, 5.6km | E148: 12.10.10~13.01.03 | F148: 653 | G148: 상주/책임 | H148: 00엔지니어링 | I148: 감리사보 | J148: 과장 | K148: 00시
B149: 00도로확장공사 | D149: 2-4차로확장, 1.4km | E149: 09.10.10~12.10.09 | F149: 265 | G149: 상주/보조 | H149: 00엔지니어링 | I149: 감리사보 | J149: 과장 | K149: 00시

Sheet 가.직무분야 실적
A1: 참여감리원 개인별 직무분야 실적
A3: ○ 책임감리원 | C3: ='가.해당분야 경력'!E3 -> 홍길일
A4: - 직무분야 실적<설계>
A5: 사업명 | C5: (참여기간) | D5: 실적 | E5: 근무형태 및 직책 | F5: 참여당시 | I5: 발주처
D6: (일수) | F6: 소속회사 | G6: 등급 | H6: 직위
A7: 계 | B7: 총00건 | C7: - | D7: =SUM(D8:D15) -> 12054 | E7: - | F7: - | G7: - | H7: - | I7: -
A8: 00부지조성공사 | C8: 94.10.10~09.10.09 | D8: 5479 | E8: 상주/보조 | F8: 00엔지니어링 | G8: 감리사보 | H8: 과장 | I8: 00시
A9: 00부지조성공사 | C9: 09.10.10~12.10.09 | D9: 6575 | E9: 상주/보조 | F9: 00엔지니어링 | G9: 감리사보 | H9: 과장 | I9: 00시
A16: - 직무분야 실적<시공 등>
A17: 사업명 | C17: (참여기간) | D17: 실적 | E17: 근무형태 및 직책 | F17: 참여당시 | I17: 발주처
D18: (일수) | F18: 소속회사 | G18: 등급 | H18: 직위
A19: 계 | B19: 총00건 | C19: - | D19: =SUM(D20:D27) -> 12054 | E19: - | F19: - | G19: - | H19: - | I19: -
A20: 00부지조성공사 | C20: 94.10.10~09.10.09 | D20: 5479 | E20: 상주/보조 | F20: 00엔지니어링 | G20: 감리사보 | H20: 과장 | I20: 00시
A21: 00부지조성공사 | C21: 09.10.10~12.10.09 | D21: 6575 | E21: 상주/보조 | F21: 00엔지니어링 | G21: 감리사보 | H21: 과장 | I21: 00시
A33: ○ 보조감리원 | C33: ='가.해당분야 경력'!E32 -> 홍길이
A34: - 직무분야 실적<설계>
A35: 사업명 | C35: (참여기간) | D35: 실적 | E35: 근무형태 및 직책 | F35: 참여당시 | I35: 발주처
D36: (일수) | F36: 소속회사 | G36: 등급 | H36: 직위
A37: 계 | B37: 총00건 | C37: - | D37: =SUM(D38:D45) -> 12054 | E37: - | F37: - | G37: - | H37: - | I37: -
A38: 00부지조성공사 | C38: 94.10.10~09.10.09 | D38: 5479 | E38: 상주/보조 | F38: 00엔지니어링 | G38: 감리사보 | H38: 과장 | I38: 00시
A39: 00부지조성공사 | C39: 09.10.10~12.10.09 | D39: 6575 | E39: 상주/보조 | F39: 00엔지니어링 | G39: 감리사보 | H39: 과장 | I39: 00시
A46: - 직무분야 실적<시공 등>
A47: 사업명 | C47: (참여기간) | D47: 실적 | E47: 근무형태 및 직책 | F47: 참여당시 | I47: 발주처
D48: (일수) | F48: 소속회사 | G48: 등급 | H48: 직위
A49: 계 | B49: 총00건 | C49: - | D49: =SUM(D50:D57) -> 12054 | E49: - | F49: - | G49: - | H49: - | I49: -
A50: 00부지조성공사 | C50: 94.10.10~09.10.09 | D50: 5479 | E50: 상주/보조 | F50: 00엔지니어링 | G50: 감리사보 | H50: 과장 | I50: 00시
A51: 00부지조성공사 | C51: 09.10.10~12.10.09 | D51: 6575 | E51: 상주/보조 | F51: 00엔지니어링 | G51: 감리사보 | H51: 과장 | I51: 00시

Sheet 가.교육 및 감리자격 현황
B1: 교육이수 실적 및 감리자격 현황
B3: 가. 교육훈련
B4: 구분 | D4: 성명 | E4: 교육과정명 | F4: 교육기관 | G4: 교육기간 | H4: 기간 | I4: 점수
B5: 상주 감리원 | C5: 책임 감리원 | D5: ='참여감리원 명단'!D5 -> 홍길일 | E5: 전문1 | F5: 건설기술교육원 | G5: 11.11.11~ 11.11.16 | H5: 2 | I5: =IF(H5>=2,"0.5",IF(H5=0,"0",IF(H5<2,"0.3"))) -> 0.5 | K5: 0
E6: 전문2 | F6: 건설기술교육원 | G6: 11.11.19~ 11.11.123 | K6: 1
C7: 보조 감리원 | D7: ='참여감리원 명단'!D6 -> 홍길이 | E7: 전문1 | F7: 건설기술교육원 | G7: 11.11.11~ 11.11.16 | H7: 2 | I7: =IF(H7>=2,"1",IF(H7=0,"0",IF(H7<2,"0.5"))) -> 1 | K7: 2
E8: 전문2 | F8: 건설기술교육원 | G8: 11.11.19~ 11.11.123
B9: 기술 지원 감리원 | C9: 도로및 공항 | D9: ='참여감리원 명단'!D7 -> 홍길삼 | E9: 전문1 | F9: 건설기술교육원 | G9: 11.11.11~ 11.11.16 | H9: 2 | I9: =IF(H9>=2,"0.5",IF(H9=0,"0",IF(H9<2,"0.3"))) -> 0.5
E10: 전문2 | F10: 건설기술교육원 | G10: 11.11.19~ 11.11.123
C11: 토질및 기초 | D11: ='참여감리원 명단'!D8 -> 홍길사 | E11: 전문1 | F11: 건설기술교육원 | G11: 11.11.11~ 11.11.16 | H11: 2 | I11: =IF(H11>=2,"0.5",IF(H11=0,"0",IF(H11<2,"0.3"))) -> 0.5
E12: 전문2 | F12: 건설기술교육원 | G12: 11.11.19~ 11.11.123
C13: 토목 구조 | D13: ='참여감리원 명단'!D9 -> 홍길오 | E13: 전문1 | F13: 건설기술교육원 | G13: 11.11.11~ 11.11.16 | H13: 2 | I13: =IF(H13>=2,"0.5",IF(H13=0,"0",IF(H13<2,"0.3"))) -> 0.5
E14: 전문2 | F14: 건설기술교육원 | G14: 11.11.19~ 11.11.123
C15: 상 하수도 | D15: ='참여감리원 명단'!D9 -> 홍길오 | E15: 전문1 | F15: 건설기술교육원 | G15: 11.11.11~ 11.11.16 | H15: 2 | I15: =IF(H15>=2,"0.5",IF(H15=0,"0",IF(H15<2,"0.3"))) -> 0.5
E16: 전문2 | F16: 건설기술교육원 | G16: 11.11.19~ 11.11.123
C17: 철도 | D17: ='참여감리원 명단'!D11 -> 홍길칠 | E17: 전문1 | F17: 건설기술교육원 | G17: 11.11.11~ 11.11.16 | H17: 2 | I17: =IF(H17>=2,"0.5",IF(H17=0,"0",IF(H17<2,"0.3"))) -> 0.5
E18: 전문2 | F18: 건설기술교육원 | G18: 11.11.19~ 11.11.123
I19: =ROUND((I9+I11+I13+I17+I17)/5,2) -> 0.5
B21: 나. 책임감리원 및 기술지원감리원 기술자격 현황
B22: 구분 | D22: 자격증 (또는 등급) | F22: 분야 | G22: 비고 | H22: - | I22: 점수
B23: 상주감리원 (책임감리원) | D23: 기술사 | F23: 토목시공 | G23: - | I23: =IF(D23="기술사","0.5",IF(D23="기사","0.3",IF(D23="산업기사","0.1"))) -> 0.5 | K23: 기술사 | L23: 수석감리사 | M23: 수석감리사
B24: 기술지원감리원 (자격증평가) | D24: 기술사 | F24: 도로및 공항 | G24: - | I24: =IF(D24="기술사","0.5",IF(D24="기사","0.3",IF(D24="산업기사","0.1"))) -> 0.5 | K24: 기사 | L24: 감리사이하 | M24: 감리사
B25: 기술지원감리원 | D25: 수석감리사 | F25: 도로및 공항 | G25: =IF(D25="수석감리사","3",IF(D25="감리사이하","2")) -> 3 | I25: =ROUND((G25+G26+G27+G28+G29)/5,2) -> 3 | K25: 산업기사 | M25: 감리사보
B26: 기술지원감리원 | D26: 수석감리사 | F26: 토질 및 기초 | G26: =IF(D26="수석감리사","3",IF(D26="감리사이하","2")) -> 3
B27: 기술지원감리원 | D27: 수석감리사 | F27: 토목구조 | G27: =IF(D27="수석감리사","3",IF(D27="감리사이하","2")) -> 3 | K27: 없음
B28: 기술지원감리원 | D28: 수석감리사 | F28: 상하수도 | G28: =IF(D28="수석감리사","3",IF(D28="감리사이하","2")) -> 3
B29: 기술지원감리원 | D29: 수석감리사 | F29: 철도 | G29: =IF(D29="수석감리사","3",IF(D29="감리사이하","2")) -> 3

Sheet 나.유사용역사업 수행실적
B1: 유사용역사업 수행실적
J2: 산정시작일 | K2: =K3-365*3 -> 2011-05-22
J3: 공고일 | K3: =참여업체현황!G2 -> 2014-05-21
B4: 구분 | C4: 업체명 | D4: 적용금액 (A, 천원) | G4: 참여지분율 (B, %) | H4: 수행실적 (A×B, 천원) | I4: 수행실적 (억원) | J4: 평가점수
B5: 1 | C5: =참여업체현황!B5 -> A사 | D5: =J14 -> 2100124.36 | G5: =참여업체현황!E5 -> 0.6 | H5: =D5*G5 -> 1260074.616
B6: 2 | C6: =참여업체현황!B6 -> B사 | D6: =J32 -> 2100124.36 | G6: =참여업체현황!E6 -> 0.3 | H6: =D6*G6 -> 630037.3081
B7: 3 | C7: =참여업체현황!B7 -> C사 | D7: =J50 -> 2100124.36 | G7: =참여업체현황!E7 -> 0.1 | H7: 210012.436
C8: 계 | H8: =SUM(H5:H7) -> 2100124.36 | I8: =H8/100000 -> 21.0012436 | J8: =IF(I8>=80,"10",IF(I8>=70,"9", IF(I8>=60,"8", IF(I8>=50,"7", IF(I8<50,"6"))))) -> 6
B11: ○ | C11: =참여업체현황!B5 -> A사
B12: 구분 | C12: 용역명 | D12: 발주처 | E12: 준공(계약) 금액(천원) | F12: 도급비율 (%) | G12: 전체사업기간(일) (C ) | I12: 해당기간 (일) | J12: 적용금액 (천원) | K12: 비고
E13: (A) | F13: (B) | G13: 시작 | H13: 종료 | I13: (D) | J13: (A×B×D/C)
B14: 합계 | D14: 총00건 | J14: =J15+(J22*0.6) -> 2100124.36
B15: 해당 분야 | C15: 1 | J15: =SUM(J16:J21)*100% -> 1781413.342 | M15: 산정시작 앞 | N15: 공고일 뒤
B16: 1 | C16: 000부지조성공사 감리용역 | D16: 00공사 | E16: 1000000 | F16: 1 | G16: 2011-10-02 | H16: 2013-10-01 | J16: =E16*F16*I17/G17 -> 1000000 | K16: 완료
G17: =IF(H16-G16=0," ",IF(H16-G16>0,H16-G16+1)) -> 731 | I17: =G17-M17-N17 -> 731 | M17: =IF($K$2-G16<=0, "0",IF($K$2-G16>0, $K$2-G16)) -> 0 | N17: =IF(H16-$K$3<=0, "0",IF(H16-$K$3>0, H16-$K$3)) -> 0
B18: 2 | C18: 000부지조성공사 감리용역 | D18: 00공사 | E18: 1000000 | F18: 0.5 | G18: 2010-01-03 | H18: 2016-01-01 | J18: =E18*F18*I19/G19 -> 250228.3105 | K18: 진행
G19: =IF(H18-G18=0," ",IF(H18-G18>0,H18-G18+1)) -> 2190 | I19: =G19-M19-N19 -> 1096 | M19: =IF($K$2-G18<=0, "0",IF($K$2-G18>0, $K$2-G18)) -> 504 | N19: =IF(H18-$K$3<=0, "0",IF(H18-$K$3>0, H18-$K$3)) -> 590
B20: 3 | C20: 000부지조성공사 감리용역 | D20: 00공사 | E20: 2000000 | F20: 0.7 | G20: 2009-10-02 | H20: 2012-05-20 | J20: =E20*F20*I21/G21 -> 531185.0312 | K20: 완료
G21: =IF(H20-G20=0," ",IF(H20-G20>0,H20-G20+1)) -> 962 | I21: =G21-M21-N21 -> 365 | M21: =IF($K$2-G20<=0, "0",IF($K$2-G20>0, $K$2-G20)) -> 597 | N21: =IF(H20-$K$3<=0, "0",IF(H20-$K$3>0, H20-$K$3)) -> 0
B22: 기타 분야 | C22: 0.6 | J22: =SUM(J23:J26) -> 531185.0312
B23: 1 | C23: 000도로확장공사 감리용역 | D23: 00시 | E23: 1000000 | F23: 0.8 | G23: 2009-10-02 | H23: 2012-05-20 | J23: =E23*F23*I24/G24 -> 303534.3035
G24: =IF(H23-G23=0," ",IF(H23-G23>0,H23-G23+1)) -> 962 | I24: =G24-M24-N24 -> 365 | M24: =IF($K$2-G23<=0, "0",IF($K$2-G23>0, $K$2-G23)) -> 597 | N24: =IF(H23-$K$3<=0, "0",IF(H23-$K$3>0, H23-$K$3)) -> 0
B25: 2 | C25: 000도로확장공사 감리용역 | D25: 00시 | E25: 1200000 | F25: 0.5 | G25: 2009-10-02 | H25: 2012-05-20 | J25: =E25*F25*I26/G26 -> 227650.7277
G26: =IF(H25-G25=0," ",IF(H25-G25>0,H25-G25+1)) -> 962 | I26: =G26-M26-N26 -> 365 | M26: =IF($K$2-G25<=0, "0",IF($K$2-G25>0, $K$2-G25)) -> 597 | N26: =IF(H25-$K$3<=0, "0",IF(H25-$K$3>0, H25-$K$3)) -> 0
B29: ○ | C29: =참여업체현황!B6 -> B사
B30: 구분 | C30: 용역명 | D30: 발주처 | E30: 준공(계약) 금액(천원) | F30: 도급비율 (%) | G30: 전체사업기간(일) (C ) | I30: 해당기간 (일) | J30: 적용금액 (천원) | K30: 비고
E31: (A) | F31: (B) | G31: 시작 | H31: 종료 | I31: (D) | J31: (A×B×D/C)
B32: 합계 | D32: 총00건 | J32: =J33+(J40*0.6) -> 2100124.36
B33: 해당 분야 | C33: 1 | J33: =SUM(J34:J39)*100% -> 1781413.342 | M33: 산정시작 앞 | N33: 공고일 뒤
B34: 1 | C34: 000부지조성공사 감리용역 | D34: 00공사 | E34: 1000000 | F34: 1 | G34: 2011-10-02 | H34: 2013-10-01 | J34: =E34*F34*I35/G35 -> 1000000 | K34: 완료
G35: =IF(H34-G34=0," ",IF(H34-G34>0,H34-G34+1)) -> 731 | I35: =G35-M35-N35 -> 731 | M35: =IF($K$2-G34<=0, "0",IF($K$2-G34>0, $K$2-G34)) -> 0 | N35: =IF(H34-$K$3<=0, "0",IF(H34-$K$3>0, H34-$K$3)) -> 0
B36: 2 | C36: 000부지조성공사 감리용역 | D36: 00공사 | E36: 1000000 | F36: 0.5 | G36: 2010-01-03 | H36: 2016-01-01 | J36: =E36*F36*I37/G37 -> 250228.3105 | K36: 진행
G37: =IF(H36-G36=0," ",IF(H36-G36>0,H36-G36+1)) -> 2190 | I37: =G37-M37-N37 -> 1096 | M37: =IF($K$2-G36<=0, "0",IF($K$2-G36>0, $K$2-G36)) -> 504 | N37: =IF(H36-$K$3<=0, "0",IF(H36-$K$3>0, H36-$K$3)) -> 590
B38: 3 | C38: 000부지조성공사 감리용역 | D38: 00공사 | E38: 2000000 | F38: 0.7 | G38: 2009-10-02 | H38: 2012-05-20 | J38: =E38*F38*I39/G39 -> 531185.0312 | K38: 완료
G39: =IF(H38-G38=0," ",IF(H38-G38>0,H38-G38+1)) -> 962 | I39: =G39-M39-N39 -> 365 | M39: =IF($K$2-G38<=0, "0",IF($K$2-G38>0, $K$2-G38)) -> 597 | N39: =IF(H38-$K$3<=0, "0",IF(H38-$K$3>0, H38-$K$3)) -> 0
B40: 기타 분야 | C40: 0.6 | J40: =SUM(J41:J44) -> 531185.0312
B41: 1 | C41: 000도로확장공사 감리용역 | D41: 00시 | E41: 1000000 | F41: 0.8 | G41: 2009-10-02 | H41: 2012-05-20 | J41: =E41*F41*I42/G42 -> 303534.3035
G42: =IF(H41-G41=0," ",IF(H41-G41>0,H41-G41+1)) -> 962 | I42: =G42-M42-N42 -> 365 | M42: =IF($K$2-G41<=0, "0",IF($K$2-G41>0, $K$2-G41)) -> 597 | N42: =IF(H41-$K$3<=0, "0",IF(H41-$K$3>0, H41-$K$3)) -> 0
B43: 2 | C43: 000도로확장공사 감리용역 | D43: 00시 | E43: 1200000 | F43: 0.5 | G43: 2009-10-02 | H43: 2012-05-20 | J43: =E43*F43*I44/G44 -> 227650.7277
G44: =IF(H43-G43=0," ",IF(H43-G43>0,H43-G43+1)) -> 962 | I44: =G44-M44-N44 -> 365 | M44: =IF($K$2-G43<=0, "0",IF($K$2-G43>0, $K$2-G43)) -> 597 | N44: =IF(H43-$K$3<=0, "0",IF(H43-$K$3>0, H43-$K$3)) -> 0
B47: ○ | C47: =참여업체현황!B7 -> C사
B48: 구분 | C48: 용역명 | D48: 발주처 | E48: 준공(계약) 금액(천원) | F48: 도급비율 (%) | G48: 전체사업기간(일) (C ) | I48: 해당기간 (일) | J48: 적용금액 (천원) | K48: 비고
E49: (A) | F49: (B) | G49: 시작 | H49: 종료 | I49: (D) | J49: (A×B×D/C)
B50: 합계 | D50: 총00건 | J50: =J51+(J58*0.6) -> 2100124.36
B51: 해당 분야 | C51: 1 | J51: =SUM(J52:J57)*100% -> 1781413.342 | M51: 산정시작 앞 | N51: 공고일 뒤
B52: 1 | C52: 000부지조성공사 감리용역 | D52: 00공사 | E52: 1000000 | F52: 1 | G52: 2011-10-02 | H52: 2013-10-01 | J52: =E52*F52*I53/G53 -> 1000000 | K52: 완료
G53: =IF(H52-G52=0," ",IF(H52-G52>0,H52-G52+1)) -> 731 | I53: =G53-M53-N53 -> 731 | M53: =IF($K$2-G52<=0, "0",IF($K$2-G52>0, $K$2-G52)) -> 0 | N53: =IF(H52-$K$3<=0, "0",IF(H52-$K$3>0, H52-$K$3)) -> 0
B54: 2 | C54: 000부지조성공사 감리용역 | D54: 00공사 | E54: 1000000 | F54: 0.5 | G54: 2010-01-03 | H54: 2016-01-01 | J54: =E54*F54*I55/G55 -> 250228.3105 | K54: 진행
G55: =IF(H54-G54=0," ",IF(H54-G54>0,H54-G54+1)) -> 2190 | I55: =G55-M55-N55 -> 1096 | M55: =IF($K$2-G54<=0, "0",IF($K$2-G54>0, $K$2-G54)) -> 504 | N55: =IF(H54-$K$3<=0, "0",IF(H54-$K$3>0, H54-$K$3)) -> 590
B56: 3 | C56: 000부지조성공사 감리용역 | D56: 00공사 | E56: 2000000 | F56: 0.7 | G56: 2009-10-02 | H56: 2012-05-20 | J56: =E56*F56*I57/G57 -> 531185.0312 | K56: 완료
G57: =IF(H56-G56=0," ",IF(H56-G56>0,H56-G56+1)) -> 962 | I57: =G57-M57-N57 -> 365 | M57: =IF($K$2-G56<=0, "0",IF($K$2-G56>0, $K$2-G56)) -> 597 | N57: =IF(H56-$K$3<=0, "0",IF(H56-$K$3>0, H56-$K$3)) -> 0
B58: 기타 분야 | C58: 0.6 | J58: =SUM(J59:J62) -> 531185.0312
B59: 1 | C59: 000도로확장공사 감리용역 | D59: 00시 | E59: 1000000 | F59: 0.8 | G59: 2009-10-02 | H59: 2012-05-20 | J59: =E59*F59*I60/G60 -> 303534.3035
G60: =IF(H59-G59=0," ",IF(H59-G59>0,H59-G59+1)) -> 962 | I60: =G60-M60-N60 -> 365 | M60: =IF($K$2-G59<=0, "0",IF($K$2-G59>0, $K$2-G59)) -> 597 | N60: =IF(H59-$K$3<=0, "0",IF(H59-$K$3>0, H59-$K$3)) -> 0
B61: 2 | C61: 000도로확장공사 감리용역 | D61: 00시 | E61: 1200000 | F61: 0.5 | G61: 2009-10-02 | H61: 2012-05-20 | J61: =E61*F61*I62/G62 -> 227650.7277
G62: =IF(H61-G61=0," ",IF(H61-G61>0,H61-G61+1)) -> 962 | I62: =G62-M62-N62 -> 365 | M62: =IF($K$2-G61<=0, "0",IF($K$2-G61>0, $K$2-G61)) -> 597 | N62: =IF(H61-$K$3<=0, "0",IF(H61-$K$3>0, H61-$K$3)) -> 0

Sheet 다.신용도
B1: 신용도
B3: 가. 입찰참가제한 또는 업무정지기간
B4: 회사명 (또는 성명) | C4: 업무정지 및 제제기간 | D4: 기간(월) | E4: 조치기관명 | F4: 사유요약 | G4: 점수 | H4: 비고
B5: 00엔지니어링 | C5: 2014.01.01~2014.03.01 | D5: 2 | E5: 00공사 | F5: 0 | G5: =D5*0.2 -> 0.4
B6: 0 | C6: 2014.01.01~2014.03.01 | D6: 1 | E6: 00시 | F6: 0 | G6: =D6*0.2 -> 0.2
B7: 합계 | G7: =SUM(G5:G6) -> 0.6
B9: 나. 부실벌점
B10: 회사명 (또는 성명) | C10: 부실벌점 | D10: 해당감리 | F10: 사유 | G10: 점수 | H10: 비고
B11: 00엔지니어링 | C11: 3 | G11: 3
B13: 합계 | G13: =SUM(G11:G12) -> 3
B15: 다. 재정상태건실도 | J15: 점 수 | K15: 회사채의 신용평가등급 | L15: 기업어음의 신용평가등급 | M15: 기업 신용평가등급
B16: 회사명 | C16: 신용평가등급 | D16: 평가점수 (A) | E16: 지분율 (B, %) | F16: 환산점수 (A×B) | G16: 평가합계 | H16: 비고 | J16: 3 | K16: AAA | L16: - | M16: (회사채에 대한 신용평가등급 AAA에 준하는 등급)
B17: =참여업체현황!B5 -> A사 | C17: AA+ | D17: 3 | E17: =참여업체현황!E5 -> 0.6 | F17: =D17*E17 -> 1.8 | G17: =ROUND(SUM(F17:F19),2) -> 2.85 | H17: 회사채 | K17: AA+, AA0, AA- | L17: A1 | M17: (회사채에 대한 신용평가등급 AA＋, AA0, AA-에 준하는 등급)
B18: =참여업체현황!B6 -> B사 | C18: BBB+ | D18: 2.7 | E18: =참여업체현황!E6 -> 0.3 | F18: =D18*E18 -> 0.81 | H18: 회사채 | K18: A+ | L18: A2+ | M18: (회사채에 대한 신용평가등급 A＋에 준하는 등급)
B19: =참여업체현황!B7 -> C사 | C19: BB+ | D19: 2.4 | E19: =참여업체현황!E7 -> 0.1 | F19: 0.24 | H19: 회사채 | K19: A0 | L19: A20 | M19: (회사채에 대한 신용평가등급 A0에 준하는 등급)
K20: A- | L20: A2- | M20: (회사채에 대한 신용평가등급 A-에 준하는 등급)
J21: 2.7 | K21: BBB+ | L21: A3+ | M21: (회사채에 대한 신용평가등급 BBB＋에 준하는 등급)
K22: BBB0 | L22: A30 | M22: (회사채에 대한 신용평가등급 BBB0에 준하는 등급)
K23: BBB- | L23: A3- | M23: (회사채에 대한 신용평가등급 BBB-에 준하는 등급)
J24: 2.4 | K24: BB+, BB0 | L24: B+ | M24: (회사채에 대한 신용평가등급 BB＋, BB0에 준하는 등급)
K25: BB- | L25: B0 | M25: (회사채에 대한 신용평가등급 BB-에 준하는 등급)
K26: B+, B0, B- | L26: B- | M26: (회사채에 대한 신용평가등급 B＋, B0, B-에 준하는 등급)
J27: 2.1 | K27: CCC+이하 | L27: C 이하 | M27: (회사채에 대한 신용평가등급 CCC＋ 이하에 준하는 등급)

Sheet 라.기술개발 및 투자실적
B1: 기술개발 및 투자실적 | Q1: 신기술 | R1: 1 | S1: 0.9 | T1: 0.8 | U1: 0.7 | V1: 0.6 | W1: 구분 | X1: 5년미만 | Y1: 5년이상 10년미만 | Z1: 10년이상 20년미만
B2: 가. 개발실적 | Q2: 실적 (건) | R2: 5이상 | S2: 5미만 4이상 | T2: 4미만 3이상 | U2: 3미만 2이상 | V2: 2미만 1이상 | W2: 특허 | X2: 1 | Y2: 0.8 | Z2: 0.6
B3: 업체명 | E3: 참여지분율 | H3: 각업체별 점수 | I3: 점수 | J3: 비고 | K3: 적용점수 | Q3: 실적금액 (억원) | R3: 20이상 | S3: 20미만 | T3: 18미만 16이상 | U3: 16미만 14이상 | V3: 14미만 12이상 | W3: 실용신안 | X3: 1 | Y3: 0.8 | Z3: 0
B4: =참여업체현황!B5 -> A사 | E4: =참여업체현황!E5 -> 0.6 | H4: =N28 -> 3.25 | I4: =E4*H4 -> 1.95
B5: =참여업체현황!B6 -> B사 | E5: =참여업체현황!E6 -> 0.3 | H5: =N49 -> 3.25 | I5: =E5*H5 -> 0.975
B6: =참여업체현황!B7 -> C사 | E6: =참여업체현황!E7 -> 0.1 | H6: =N70 -> 3.25 | I6: =E6*H6 -> 0.325
B7: 합계 | I7: =SUM(I4:I6) -> 3.25 | K7: =ROUND(IF(I7<=3,I7,IF(I7>3,"3")),2) -> 3
B9: ○ | C9: =B4 -> A사 | N9: =참여업체현황!F2 -> 공고일 | O9: =참여업체현황!G2 -> 2014-05-21
B10: 구분 | C10: 연번 | D10: 명칭 | E10: 지정번호 | F10: 명의자명 | G10: 출원자 수 | H10: - | N10: 점수 | O10: 비고
B12: (개발 실적) 건설 신기술 | C12: 1 | D12: 0 | E12: 000-00 | F12: ㈜00엔지니어링 | G12: 1 | H12: - | N12: =IF(G12=0,"해당없음",IF(G12>0,1/G12)) -> 1
C13: 2 | D13: 0 | E13: 000-00 | F13: ㈜01엔지니어링 | G13: 3 | H13: - | N13: =IF(G13=0,"해당없음",IF(G13>0,1/G13)) -> 0.3333333333
C14: 3 | D14: 0 | E14: 000-00 | F14: ㈜02엔지니어링 | G14: 2 | H14: - | N14: 0.5
C15: 소계 | N15: =SUM(N12:N14) -> 1.833333333
B16: 구분 | C16: 연번 | D16: 명칭 | E16: 지정번호 | F16: 명의자명 | G16: - | H16: 보호기간 | J16: 경과기간 | K16: 사용실적 | M16: 가중치 | N16: 점수 | O16: 비고 | Q16: 가중치
H17: (시작) | I17: (종료) | J17: (년) | K17: (건) | L17: (금액,억원) | Q17: 건수 | R17: 금액
B18: (활용 실적) 건설 신기술 | C18: 1 | D18: 0 | E18: 000-00 | F18: ㈜00엔지니어링 | G18: - | H18: 2010-10-02 | I18: 2011-01-01 | J18: =ROUND((참여업체현황!$G$2-'라.기술개발 및 투자실적'!I18+1)/365,2) -> 3.39 | K18: 6 | L18: 22 | M18: =IF(Q18>=R18, Q18,R18) -> 1 | N18: =IF(J18>3,0,0.5*M18) -> 0 | Q18: =IF(K18<1, " ", IF(K18>=5,"1", IF(K18>=4, "0.9", IF(K18>=3, "0.8", IF(K18>=2,"0.7", IF(K18>=1,"0.6")))))) -> 1 | R18: =IF(L18<12, " ", IF(L18>=20,"1", IF(L18>=18, "0.9", IF(L18>=16, "0.8", IF(L18>=14,"0.7", IF(L18>=12,"0.6")))))) -> 1
C19: 2 | D19: 0 | E19: 000-00 | F19: ㈜01엔지니어링 | G19: - | H19: 2010-10-02 | I19: 2014-10-01 | J19: =ROUND((참여업체현황!$G$2-'라.기술개발 및 투자실적'!I19+1)/365,2) -> -0.36 | K19: 2 | L19: 17 | M19: =IF(Q19>=R19, Q19,R19) -> 0.8 | N19: =IF(J19>3,0,0.5*M19) -> 0.4 | Q19: =IF(K19<1, " ", IF(K19>=5,"1", IF(K19>=4, "0.9", IF(K19>=3, "0.8", IF(K19>=2,"0.7", IF(K19>=1,"0.6")))))) -> 0.7 | R19: =IF(L19<12, " ", IF(L19>=20,"1", IF(L19>=18, "0.9", IF(L19>=16, "0.8", IF(L19>=14,"0.7", IF(L19>=12,"0.6")))))) -> 0.8
C20: 3 | D20: 0 | E20: 000-00 | F20: ㈜02엔지니어링 | G20: - | H20: 2010-10-02 | I20: 2014-10-01 | J20: =ROUND((참여업체현황!$G$2-'라.기술개발 및 투자실적'!I20+1)/365,2) -> -0.36 | K20: 1 | L20: 13 | M20: =IF(Q20>=R20, Q20,R20) -> 0.6 | N20: =IF(J20>3,0,0.5*M20) -> 0.3 | Q20: =IF(K20<1, " ", IF(K20>=5,"1", IF(K20>=4, "0.9", IF(K20>=3, "0.8", IF(K20>=2,"0.7", IF(K20>=1,"0.6")))))) -> 0.6 | R20: =IF(L20<12, " ", IF(L20>=20,"1", IF(L20>=18, "0.9", IF(L20>=16, "0.8", IF(L20>=14,"0.7", IF(L20>=12,"0.6")))))) -> 0.6
C21: 소계 | N21: =SUM(N18:N20) -> 0.7
B22: 구분 | C22: 연번 | D22: 명칭 | E22: 지정번호 | F22: 명의자명 | G22: - | H22: 등록권리 만료기간 | I22: 특허출원시기 | J22: 경과기간 | K22: 사용실적 | M22: 환산 가중치 | N22: 점수 | O22: 비고 | Q22: 사용실적가중치 | S22: 사용실적적용가중치 | T22: 사용실적가중치
J23: (년) | K23: (건) | L23: (금액,억원) | Q23: 건수 | R23: 금액 | S23: 건수 | T23: 건수
B24: (활용 실적) 특허 | C24: 1 | D24: 0 | E24: 000-00 | F24: ㈜00엔지니어링 | G24: - | H24: 2015-02-20 | I24: 2010-10-02 | J24: =ROUND((참여업체현황!$G$2-I24)/365,2) -> 3.64 | K24: 6 | L24: 22 | M24: =S24*T24 -> 1 | N24: =IF(('라.기술개발 및 투자실적'!H24-참여업체현황!$G$2)<0,0,0.3*M24) -> 0.3 | Q24: =IF(K24<1, " ", IF(K24>=5,"1", IF(K24>=4, "0.9", IF(K24>=3, "0.8", IF(K24>=2,"0.7", IF(K24>=1,"0.6")))))) -> 1 | R24: =IF(L24<12, " ", IF(L24>=20,"1", IF(L24>=18, "0.9", IF(L24>=16, "0.8", IF(L24>=14,"0.7", IF(L24>=12,"0.6")))))) -> 1 | S24: =IF(Q24>=R24, Q24,R24) -> 1 | T24: =IF(J24>=20,0,IF(J24>=10,0.6,IF(J24>=5,0.8,IF(J24<5,1)))) -> 1
C25: 2 | D25: 0 | E25: 000-00 | F25: ㈜01엔지니어링 | G25: - | H25: 2018-01-20 | I25: 2010-10-02 | J25: =ROUND((참여업체현황!$G$2-I25)/365,2) -> 3.64 | K25: 2 | L25: 17 | M25: =S25*T25 -> 0.8 | N25: =IF(('라.기술개발 및 투자실적'!H25-참여업체현황!$G$2)<0,0,0.3*M25) -> 0.24 | Q25: =IF(K25<1, " ", IF(K25>=5,"1", IF(K25>=4, "0.9", IF(K25>=3, "0.8", IF(K25>=2,"0.7", IF(K25>=1,"0.6")))))) -> 0.7 | R25: =IF(L25<12, " ", IF(L25>=20,"1", IF(L25>=18, "0.9", IF(L25>=16, "0.8", IF(L25>=14,"0.7", IF(L25>=12,"0.6")))))) -> 0.8 | S25: =IF(Q25>=R25, Q25,R25) -> 0.8 | T25: =IF(J25>=20,0,IF(J25>=10,0.6,IF(J25>=5,0.8,IF(J25<5,1)))) -> 1
C26: 3 | D26: 0 | E26: 000-00 | F26: ㈜02엔지니어링 | G26: - | H26: 2014-10-30 | I26: 2010-10-02 | J26: =ROUND((참여업체현황!$G$2-I26)/365,2) -> 3.64 | K26: 1 | L26: 13 | M26: 0.6 | N26: =IF(('라.기술개발 및 투자실적'!H26-참여업체현황!$G$2)<0,0,0.3*M26) -> 0.18 | Q26: =IF(K26<1, " ", IF(K26>=5,"1", IF(K26>=4, "0.9", IF(K26>=3, "0.8", IF(K26>=2,"0.7", IF(K26>=1,"0.6")))))) -> 0.6 | R26: =IF(L26<12, " ", IF(L26>=20,"1", IF(L26>=18, "0.9", IF(L26>=16, "0.8", IF(L26>=14,"0.7", IF(L26>=12,"0.6")))))) -> 0.6 | S26: 0.6 | T26: 1
C27: 소계 | N27: =SUM(N24:N26) -> 0.72
B28: 합계 | N28: =ROUND(N15+N21+N27,2) -> 3.25
B30: ○ | C30: =B5 -> B사
B31: 구분 | C31: 연번 | D31: 명칭 | E31: 지정번호 | F31: 명의자명 | G31: 출원자 수 | H31: - | N31: 점수 | O31: 비고
B33: (개발 실적) 건설 신기술 | C33: 1 | D33: 0 | E33: 000-00 | F33: ㈜00엔지니어링 | G33: 1 | H33: - | N33: =IF(G33=0,"해당없음",IF(G33>0,1/G33)) -> 1
C34: 2 | D34: 0 | E34: 000-00 | F34: ㈜01엔지니어링 | G34: 3 | H34: - | N34: =IF(G34=0,"해당없음",IF(G34>0,1/G34)) -> 0.3333333333
C35: 3 | D35: 0 | E35: 000-00 | F35: ㈜02엔지니어링 | G35: 2 | H35: - | N35: 0.5
C36: 소계 | N36: =SUM(N33:N35) -> 1.833333333
B37: 구분 | C37: 연번 | D37: 명칭 | E37: 지정번호 | F37: 명의자명 | G37: - | H37: 보호기간 | J37: 경과기간 | K37: 사용실적 | M37: 가중치 | N37: 점수 | O37: 비고 | Q37: 가중치
H38: (시작) | I38: (종료) | J38: (년) | K38: (건) | L38: (금액,억원) | Q38: 건수 | R38: 금액
B39: (활용 실적) 건설 신기술 | C39: 1 | D39: 0 | E39: 000-00 | F39: ㈜00엔지니어링 | G39: - | H39: 2010-10-02 | I39: 2011-01-01 | J39: =ROUND((참여업체현황!$G$2-'라.기술개발 및 투자실적'!I39+1)/365,2) -> 3.39 | K39: 6 | L39: 22 | M39: =IF(Q39>=R39, Q39,R39) -> 1 | N39: =IF(J39>3,0,0.5*M39) -> 0 | Q39: =IF(K39<1, " ", IF(K39>=5,"1", IF(K39>=4, "0.9", IF(K39>=3, "0.8", IF(K39>=2,"0.7", IF(K39>=1,"0.6")))))) -> 1 | R39: =IF(L39<12, " ", IF(L39>=20,"1", IF(L39>=18, "0.9", IF(L39>=16, "0.8", IF(L39>=14,"0.7", IF(L39>=12,"0.6")))))) -> 1
C40: 2 | D40: 0 | E40: 000-00 | F40: ㈜01엔지니어링 | G40: - | H40: 2010-10-02 | I40: 2014-10-01 | J40: =ROUND((참여업체현황!$G$2-'라.기술개발 및 투자실적'!I40+1)/365,2) -> -0.36 | K40: 2 | L40: 17 | M40: =IF(Q40>=R40, Q40,R40) -> 0.8 | N40: =IF(J40>3,0,0.5*M40) -> 0.4 | Q40: =IF(K40<1, " ", IF(K40>=5,"1", IF(K40>=4, "0.9", IF(K40>=3, "0.8", IF(K40>=2,"0.7", IF(K40>=1,"0.6")))))) -> 0.7 | R40: =IF(L40<12, " ", IF(L40>=20,"1", IF(L40>=18, "0.9", IF(L40>=16, "0.8", IF(L40>=14,"0.7", IF(L40>=12,"0.6")))))) -> 0.8
C41: 3 | D41: 0 | E41: 000-00 | F41: ㈜02엔지니어링 | G41: - | H41: 2010-10-02 | I41: 2014-10-01 | J41: =ROUND((참여업체현황!$G$2-'라.기술개발 및 투자실적'!I41+1)/365,2) -> -0.36 | K41: 1 | L41: 13 | M41: =IF(Q41>=R41, Q41,R41) -> 0.6 | N41: =IF(J41>3,0,0.5*M41) -> 0.3 | Q41: =IF(K41<1, " ", IF(K41>=5,"1", IF(K41>=4, "0.9", IF(K41>=3, "0.8", IF(K41>=2,"0.7", IF(K41>=1,"0.6")))))) -> 0.6 | R41: =IF(L41<12, " ", IF(L41>=20,"1", IF(L41>=18, "0.9", IF(L41>=16, "0.8", IF(L41>=14,"0.7", IF(L41>=12,"0.6")))))) -> 0.6
C42: 소계 | N42: =SUM(N39:N41) -> 0.7
B43: 구분 | C43: 연번 | D43: 명칭 | E43: 지정번호 | F43: 명의자명 | G43: - | H43: 등록권리 만료기간 | I43: 특허출원시기 | J43: 경과기간 | K43: 사용실적 | M43: 환산 가중치 | N43: 점수 | O43: 비고 | Q43: 사용실적가중치 | S43: 사용실적적용가중치 | T43: 사용실적가중치
J44: (년) | K44: (건) | L44: (금액,억원) | Q44: 건수 | R44: 금액 | S44: 건수 | T44: 건수
B45: (활용 실적) 특허 | C45: 1 | D45: 0 | E45: 000-00 | F45: ㈜00엔지니어링 | G45: - | H45: 2015-02-20 | I45: 2010-10-02 | J45: =ROUND((참여업체현황!$G$2-I45)/365,2) -> 3.64 | K45: 6 | L45: 22 | M45: =S45*T45 -> 1 | N45: =IF(('라.기술개발 및 투자실적'!H45-참여업체현황!$G$2)<0,0,0.3*M45) -> 0.3 | Q45: =IF(K45<1, " ", IF(K45>=5,"1", IF(K45>=4, "0.9", IF(K45>=3, "0.8", IF(K45>=2,"0.7", IF(K45>=1,"0.6")))))) -> 1 | R45: =IF(L45<12, " ", IF(L45>=20,"1", IF(L45>=18, "0.9", IF(L45>=16, "0.8", IF(L45>=14,"0.7", IF(L45>=12,"0.6")))))) -> 1 | S45: =IF(Q45>=R45, Q45,R45) -> 1 | T45: =IF(J45>=20,0,IF(J45>=10,0.6,IF(J45>=5,0.8,IF(J45<5,1)))) -> 1
C46: 2 | D46: 0 | E46: 000-00 | F46: ㈜01엔지니어링 | G46: - | H46: 2018-01-20 | I46: 2010-10-02 | J46: =ROUND((참여업체현황!$G$2-I46)/365,2) -> 3.64 | K46: 2 | L46: 17 | M46: =S46*T46 -> 0.8 | N46: =IF(('라.기술개발 및 투자실적'!H46-참여업체현황!$G$2)<0,0,0.3*M46) -> 0.24 | Q46: =IF(K46<1, " ", IF(K46>=5,"1", IF(K46>=4, "0.9", IF(K46>=3, "0.8", IF(K46>=2,"0.7", IF(K46>=1,"0.6")))))) -> 0.7 | R46: =IF(L46<12, " ", IF(L46>=20,"1", IF(L46>=18, "0.9", IF(L46>=16, "0.8", IF(L46>=14,"0.7", IF(L46>=12,"0.6")))))) -> 0.8 | S46: =IF(Q46>=R46, Q46,R46) -> 0.8 | T46: =IF(J46>=20,0,IF(J46>=10,0.6,IF(J46>=5,0.8,IF(J46<5,1)))) -> 1
C47: 3 | D47: 0 | E47: 000-00 | F47: ㈜02엔지니어링 | G47: - | H47: 2014-10-30 | I47: 2010-10-02 | J47: =ROUND((참여업체현황!$G$2-I47)/365,2) -> 3.64 | K47: 1 | L47: 13 | M47: 0.6 | N47: =IF(('라.기술개발 및 투자실적'!H47-참여업체현황!$G$2)<0,0,0.3*M47) -> 0.18 | Q47: =IF(K47<1, " ", IF(K47>=5,"1", IF(K47>=4, "0.9", IF(K47>=3, "0.8", IF(K47>=2,"0.7", IF(K47>=1,"0.6")))))) -> 0.6 | R47: =IF(L47<12, " ", IF(L47>=20,"1", IF(L47>=18, "0.9", IF(L47>=16, "0.8", IF(L47>=14,"0.7", IF(L47>=12,"0.6")))))) -> 0.6 | S47: 0.6 | T47: 1
C48: 소계 | N48: =SUM(N45:N47) -> 0.72
B49: 합계 | N49: =ROUND(N36+N42+N48,2) -> 3.25
B51: ○ | C51: =B6 -> C사
B52: 구분 | C52: 연번 | D52: 명칭 | E52: 지정번호 | F52: 명의자명 | G52: 출원자 수 | H52: - | N52: 점수 | O52: 비고
B54: (개발 실적) 건설 신기술 | C54: 1 | D54: 0 | E54: 000-00 | F54: ㈜00엔지니어링 | G54: 1 | H54: - | N54: =IF(G54=0,"해당없음",IF(G54>0,1/G54)) -> 1
C55: 2 | D55: 0 | E55: 000-00 | F55: ㈜01엔지니어링 | G55: 3 | H55: - | N55: =IF(G55=0,"해당없음",IF(G55>0,1/G55)) -> 0.3333333333
C56: 3 | D56: 0 | E56: 000-00 | F56: ㈜02엔지니어링 | G56: 2 | H56: - | N56: 0.5
C57: 소계 | N57: =SUM(N54:N56) -> 1.833333333
B58: 구분 | C58: 연번 | D58: 명칭 | E58: 지정번호 | F58: 명의자명 | G58: - | H58: 보호기간 | J58: 경과기간 | K58: 사용실적 | M58: 가중치 | N58: 점수 | O58: 비고 | Q58: 가중치
H59: (시작) | I59: (종료) | J59: (년) | K59: (건) | L59: (금액,억원) | Q59: 건수 | R59: 금액
B60: (활용 실적) 건설 신기술 | C60: 1 | D60: 0 | E60: 000-00 | F60: ㈜00엔지니어링 | G60: - | H60: 2010-10-02 | I60: 2011-01-01 | J60: =ROUND((참여업체현황!$G$2-'라.기술개발 및 투자실적'!I60+1)/365,2) -> 3.39 | K60: 6 | L60: 22 | M60: =IF(Q60>=R60, Q60,R60) -> 1 | N60: =IF(J60>3,0,0.5*M60) -> 0 | Q60: =IF(K60<1, " ", IF(K60>=5,"1", IF(K60>=4, "0.9", IF(K60>=3, "0.8", IF(K60>=2,"0.7", IF(K60>=1,"0.6")))))) -> 1 | R60: =IF(L60<12, " ", IF(L60>=20,"1", IF(L60>=18, "0.9", IF(L60>=16, "0.8", IF(L60>=14,"0.7", IF(L60>=12,"0.6")))))) -> 1
C61: 2 | D61: 0 | E61: 000-00 | F61: ㈜01엔지니어링 | G61: - | H61: 2010-10-02 | I61: 2014-10-01 | J61: =ROUND((참여업체현황!$G$2-'라.기술개발 및 투자실적'!I61+1)/365,2) -> -0.36 | K61: 2 | L61: 17 | M61: =IF(Q61>=R61, Q61,R61) -> 0.8 | N61: =IF(J61>3,0,0.5*M61) -> 0.4 | Q61: =IF(K61<1, " ", IF(K61>=5,"1", IF(K61>=4, "0.9", IF(K61>=3, "0.8", IF(K61>=2,"0.7", IF(K61>=1,"0.6")))))) -> 0.7 | R61: =IF(L61<12, " ", IF(L61>=20,"1", IF(L61>=18, "0.9", IF(L61>=16, "0.8", IF(L61>=14,"0.7", IF(L61>=12,"0.6")))))) -> 0.8
C62: 3 | D62: 0 | E62: 000-00 | F62: ㈜02엔지니어링 | G62: - | H62: 2010-10-02 | I62: 2014-10-01 | J62: =ROUND((참여업체현황!$G$2-'라.기술개발 및 투자실적'!I62+1)/365,2) -> -0.36 | K62: 1 | L62: 13 | M62: =IF(Q62>=R62, Q62,R62) -> 0.6 | N62: =IF(J62>3,0,0.5*M62) -> 0.3 | Q62: =IF(K62<1, " ", IF(K62>=5,"1", IF(K62>=4, "0.9", IF(K62>=3, "0.8", IF(K62>=2,"0.7", IF(K62>=1,"0.6")))))) -> 0.6 | R62: =IF(L62<12, " ", IF(L62>=20,"1", IF(L62>=18, "0.9", IF(L62>=16, "0.8", IF(L62>=14,"0.7", IF(L62>=12,"0.6")))))) -> 0.6
C63: 소계 | N63: =SUM(N60:N62) -> 0.7
B64: 구분 | C64: 연번 | D64: 명칭 | E64: 지정번호 | F64: 명의자명 | G64: - | H64: 등록권리 만료기간 | I64: 특허출원시기 | J64: 경과기간 | K64: 사용실적 | M64: 환산 가중치 | N64: 점수 | O64: 비고 | Q64: 사용실적가중치 | S64: 사용실적적용가중치 | T64: 사용실적가중치
J65: (년) | K65: (건) | L65: (금액,억원) | Q65: 건수 | R65: 금액 | S65: 건수 | T65: 건수
B66: (활용 실적) 특허 | C66: 1 | D66: 0 | E66: 000-00 | F66: ㈜00엔지니어링 | G66: - | H66: 2015-02-20 | I66: 2010-10-02 | J66: =ROUND((참여업체현황!$G$2-I66)/365,2) -> 3.64 | K66: 6 | L66: 22 | M66: =S66*T66 -> 1 | N66: =IF(('라.기술개발 및 투자실적'!H66-참여업체현황!$G$2)<0,0,0.3*M66) -> 0.3 | Q66: =IF(K66<1, " ", IF(K66>=5,"1", IF(K66>=4, "0.9", IF(K66>=3, "0.8", IF(K66>=2,"0.7", IF(K66>=1,"0.6")))))) -> 1 | R66: =IF(L66<12, " ", IF(L66>=20,"1", IF(L66>=18, "0.9", IF(L66>=16, "0.8", IF(L66>=14,"0.7", IF(L66>=12,"0.6")))))) -> 1 | S66: =IF(Q66>=R66, Q66,R66) -> 1 | T66: =IF(J66>=20,0,IF(J66>=10,0.6,IF(J66>=5,0.8,IF(J66<5,1)))) -> 1
C67: 2 | D67: 0 | E67: 000-00 | F67: ㈜01엔지니어링 | G67: - | H67: 2018-01-20 | I67: 2010-10-02 | J67: =ROUND((참여업체현황!$G$2-I67)/365,2) -> 3.64 | K67: 2 | L67: 17 | M67: =S67*T67 -> 0.8 | N67: =IF(('라.기술개발 및 투자실적'!H67-참여업체현황!$G$2)<0,0,0.3*M67) -> 0.24 | Q67: =IF(K67<1, " ", IF(K67>=5,"1", IF(K67>=4, "0.9", IF(K67>=3, "0.8", IF(K67>=2,"0.7", IF(K67>=1,"0.6")))))) -> 0.7 | R67: =IF(L67<12, " ", IF(L67>=20,"1", IF(L67>=18, "0.9", IF(L67>=16, "0.8", IF(L67>=14,"0.7", IF(L67>=12,"0.6")))))) -> 0.8 | S67: =IF(Q67>=R67, Q67,R67) -> 0.8 | T67: =IF(J67>=20,0,IF(J67>=10,0.6,IF(J67>=5,0.8,IF(J67<5,1)))) -> 1
C68: 3 | D68: 0 | E68: 000-00 | F68: ㈜02엔지니어링 | G68: - | H68: 2014-10-30 | I68: 2010-10-02 | J68: =ROUND((참여업체현황!$G$2-I68)/365,2) -> 3.64 | K68: 1 | L68: 13 | M68: 0.6 | N68: =IF(('라.기술개발 및 투자실적'!H68-참여업체현황!$G$2)<0,0,0.3*M68) -> 0.18 | Q68: =IF(K68<1, " ", IF(K68>=5,"1", IF(K68>=4, "0.9", IF(K68>=3, "0.8", IF(K68>=2,"0.7", IF(K68>=1,"0.6")))))) -> 0.6 | R68: =IF(L68<12, " ", IF(L68>=20,"1", IF(L68>=18, "0.9", IF(L68>=16, "0.8", IF(L68>=14,"0.7", IF(L68>=12,"0.6")))))) -> 0.6 | S68: 0.6 | T68: 1
C69: 소계 | N69: =SUM(N66:N68) -> 0.72
B70: 합계 | N70: =ROUND(N57+N63+N69,2) -> 3.25
B73: 나. 투자실적 | N73: (단위: | O73: 백만원)
B74: 업체명 | D74: 참여지분율 | G74: 1년차 | I74: 2년차 | K74: 3년차 | M74: (A1+A2+A3) /(B1+B2+B3) | O74: 적용점수
G75: A1 | H75: B1 | I75: A2 | J75: B2 | K75: A3 | L75: B3
B76: =B4 -> A사 | D76: =E4 -> 0.6 | G76: 2 | H76: 200 | I76: 3 | J76: 100 | K76: 7 | L76: 300 | M76: =(G76+I76+K76)/(H76+J76+L76) -> 0.02 | O76: =D76*M76 -> 0.012
B77: =B5 -> B사 | D77: =E5 -> 0.3 | G77: 3 | H77: 300 | I77: 4 | J77: 200 | K77: 8 | L77: 400 | M77: =(G77+I77+K77)/(H77+J77+L77) -> 0.01666666667 | O77: =D77*M77 -> 0.005
B78: C사 | D78: 0.1 | G78: 4 | H78: 400 | I78: 5 | J78: 300 | K78: 9 | L78: 500 | M78: =(G78+I78+K78)/(H78+J78+L78) -> 0.015 | O78: =D78*M78 -> 0.0015
B79: 합계 | O79: =ROUND(SUM(O76:O78),4) -> 0.0185
B80: 점수 | O80: =IF(O79>=3%,"7",IF(O79>=2.5%,"6.8", IF(O79>=2%,"6.6", IF(O79>=1.5%,"6.4", IF(O79>=1%,"6.2","6"))))) -> 6.4

Sheet 마.업무중첩도
B1: 업무중첩도
B2: (현재수행중인 용역 현황)
B4: 구분 | C4: 성명 | D4: 현장배치현황 | F4: 점수 | G4: 비고
D5: 현장명 | E5: 용역기간
B6: ='참여감리원 명단'!B5 -> 책임 감리원 | C6: ='참여감리원 명단'!D5 -> 홍길일 | D6: 없음 | E6: - | F6: 2
B7: ='참여감리원 명단'!B6 -> 보조 감리원 | C7: ='참여감리원 명단'!D6 -> 홍길이 | D7: 없음 | E7: - | F7: 1
B8: 계 | F8: =SUM(F6:F7) -> 3
B9: ='참여감리원 명단'!B7 -> 기술 지원 감리원 | C9: ='참여감리원 명단'!D7 -> 홍길삼 | F9: 2 | G9: 10개이상 중복배치시 : 0점
C13: ='참여감리원 명단'!D8 -> 홍길사 | F13: 2
C17: ='참여감리원 명단'!D9 -> 홍길오 | F17: 2
C21: ='참여감리원 명단'!D10 -> 홍길육 | F21: 2
C25: ='참여감리원 명단'!D11 -> 홍길칠 | F25: 2
B29: 계 | F29: =(F9+F13+F17+F21+F25)/5 -> 2

Sheet 바.교체빈도
B1: 최근 1년간 참여감리원의 교체빈도
B3: ○ 감리전문회사
B4: 업체명 | C4: 회사소속 감리원수 | F4: 교체건수 | J4: 교체빈도율 (%)
C5: 상주 | D5: 기술지원 | E5: 계 | F5: 상주감리원 | G5: 기술지원감리원
H6: 환산(5건→1건) | I6: 계
B7: =참여업체현황!B5 -> A사 | C7: 264 | D7: 111 | E7: =C7+D7/5 -> 286.2 | F7: 1 | G7: 0 | H7: =G7/5 -> 0 | I7: =F7+H7 -> 1 | J7: =I7/E7 -> 0.003494060098
B8: =참여업체현황!B6 -> B사 | C8: 110 | D8: 42 | E8: =C8+D8/5 -> 118.4 | F8: 2 | G8: 1 | H8: =G8/5 -> 0.2 | I8: =F8+H8 -> 2.2 | J8: =I8/E8 -> 0.01858108108
B9: =참여업체현황!B7 -> C사 | C9: 210 | D9: 90 | E9: 228 | F9: 1 | G9: 4 | H9: 0.8 | I9: 1.8 | J9: 0.007894736842
B10: 계 | J10: =ROUND(SUM(J7:J9),4) -> 0.03
B11: 점수 | J11: =IF(J10<5%,"5", IF(J10<10%, "4.5", IF(J10<15%, "4", IF(J10<20%, "3", "0")))) -> 5
B14: ○ 참여감리원
B15: 등급 | C15: 성명 | D15: 용역명 | E15: 발주기관 | F15: 참여구분 (상주,기술지원) | G15: 교체건수 | H15: 감점 | I15: 비고
B16: ='참여감리원 명단'!B5 -> 책임 감리원 | C16: ='참여감리원 명단'!D5 -> 홍길일 | D16: 00감리용역 | E16: 00시 | F16: 상주 | G16: 1 | H16: =G16*0.25 -> 0.25
B17: ='참여감리원 명단'!B6 -> 보조 감리원 | C17: ='참여감리원 명단'!D6 -> 홍길이 | D17: 00감리용역 | E17: 00청 | F17: 상주 | G17: 0 | H17: =G17*0.25 -> 0
B18: ='참여감리원 명단'!B7 -> 기술 지원 감리원 | C18: ='참여감리원 명단'!D7 -> 홍길삼 | D18: 00감리용역 | E18: 00공사 | F18: 상주 | G18: 0 | H18: =G18*0.1 -> 0
C19: ='참여감리원 명단'!D8 -> 홍길사 | D19: 00감리용역 | E19: 00시 | F19: 비상주 | G19: 0 | H19: =G19*0.1 -> 0
C20: ='참여감리원 명단'!D9 -> 홍길오 | D20: 00감리용역 | E20: 00청 | F20: 비상주 | G20: 1 | H20: =G20*0.1 -> 0.1
C21: ='참여감리원 명단'!D10 -> 홍길육 | D21: 00감리용역 | E21: 00청 | F21: 비상주 | G21: 1 | H21: =G21*0.1 -> 0.1
C22: ='참여감리원 명단'!D11 -> 홍길칠 | D22: 00감리용역 | E22: 00공사 | F22: 상주 | G22: 2 | H22: 0.2
B23: 합계 | H23: =SUM(H16:H22) -> 0.65
B24: 점수 | H24: =5-H23 -> 4.35
